fUSD/lending_fUSD_20240502
["ID","MTS","AMOUNT","RATE_DAILY","PERIOD"]
[325298075,1714685451227,-1168.53,0.00030136,2]
[325298076,1714685451236,-1217.58,0.00030136,2]
[325298077,1714685451246,-500.0,0.00030136,2]
[325298078,1714685451256,-1074.58,0.00030136,2]
[325298079,1714685451266,-500.0,0.00030136,2]
[325298080,1714685451275,-2370.94,0.00030136,2]
[325298081,1714685451285,-10260.87,0.00030136,2]
[325298082,1714685451295,-500.0,0.00030136,2]
[325298083,1714685451304,-500.0,0.00030136,2]
[325298084,1714685451313,-1195.02,0.00030136,2]
[325298085,1714685451323,-2379.18,0.00030136,2]
[325298086,1714685451332,-2059.58,0.00030136,2]
[325298087,1714685451342,-1533.63,0.00030136,2]
[325298088,1714685451351,-3433.21,0.00030136,2]
[325298089,1714685451361,-500.94031219,0.00030136,2]
[325298090,1714685451372,-1288.35,0.00030136,2]
[325298091,1714685451382,-500.0,0.00030136,2]
[325298092,1714685451392,-2618.40063049,0.00030136,2]
[325298093,1714685451412,-801.25936951,0.00030136,2]
[325298094,1714685451725,-904.2,0.00030136,2]
[325298095,1714685451739,-500.0,0.00030136,2]
[325298096,1714685451749,-692.28,0.00030136,2]
[325298097,1714685451758,-1719.72,0.00030136,2]
[325298098,1714685451768,-500.0,0.00030136,2]
[325298099,1714685451777,-500.0,0.00030136,2]
[325298100,1714685451787,-1079.19,0.00030136,2]
[325298101,1714685451796,-500.0,0.00030136,2]
[325298102,1714685451806,-500.6813257,0.00030136,2]
[325298103,1714685451815,-1531.06,0.00030136,2]
[325298104,1714685451825,-896.62,0.00030136,2]
[325298105,1714685451835,-2283.35,0.00030136,2]
[325298106,1714685451844,-641.02,0.00030136,2]
[325298107,1714685451853,-500.0,0.00030136,2]
[325298108,1714685451863,-948.8,0.00030136,2]
[325298109,1714685451873,-3001.35,0.00030136,2]
[325298110,1714685451882,-500.0,0.00030136,2]
[325298111,1714685451892,-1041.15,0.00030136,2]
[325298112,1714685451901,-3108.37,0.00030136,2]
[325298113,1714685451910,-1360.06,0.00030136,2]
[325298114,1714685451920,-2323.24,0.00030136,2]
[325298115,1714685451929,-2821.06,0.00030136,2]
[325298116,1714685451938,-1048.2,0.00030136,2]
[325298117,1714685451948,-1507.74,0.00030136,2]
[325298118,1714685451957,-500.0,0.00030136,2]
[325298119,1714685451967,-500.0,0.00030136,2]
[325298120,1714685451977,-500.0,0.00030136,2]
[325298121,1714685451986,-500.0,0.00030136,2]
[325298122,1714685451995,-1387.16,0.00030136,2]
[325298123,1714685452005,-500.0,0.00030136,2]
[325298124,1714685452014,-2470.23,0.00030136,2]
[325298125,1714685452024,-500.0,0.00030136,2]
[325298126,1714685452034,-1659.44,0.00030136,2]
[325298127,1714685452043,-5260.43,0.00030136,2]
[325298128,1714685452053,-500.0,0.00030136,2]
[325298129,1714685452062,-2340.68,0.00030136,2]
[325298130,1714685452072,-3256.42,0.00030136,2]
[325298131,1714685452081,-645.08545267,0.00030136,2]
[325298132,1714685452090,-500.0,0.00030136,2]
[325298133,1714685452100,-694.66,0.00030136,2]
[325298134,1714685452109,-500.0,0.00030136,2]
[325298135,1714685452119,-500.0,0.00030136,2]
[325298136,1714685452129,-566.59,0.00030136,2]
[325298137,1714685452138,-7971.27,0.00030136,2]
[325298138,1714685452148,-500.0,0.00030136,2]
[325298139,1714685452157,-1059.24,0.00030136,2]
[325298140,1714685452168,-1111.88,0.00030136,2]
[325298141,1714685452177,-500.0,0.00030136,2]
[325298142,1714685452186,-1858.16,0.00030136,2]
[325298143,1714685452196,-500.0,0.00030136,2]
[325298144,1714685452205,-500.0,0.00030136,2]
[325298145,1714685452215,-500.0,0.00030136,2]
[325298146,1714685452224,-500.0,0.00030136,2]
[325298147,1714685452234,-4472.15,0.00030136,2]
[325298148,1714685452243,-3422.09,0.00030136,2]
[325298149,1714685452253,-5997.46,0.00030136,2]
[325298150,1714685452262,-501.83951843,0.00030136,2]
[325298151,1714685452272,-3077.33,0.00030136,2]
[325298152,1714685452281,-624.27,0.00030136,2]
[325298153,1714685452291,-1786.01,0.00030136,2]
[325298154,1714685452300,-838.26,0.00030136,2]
[325298155,1714685452310,-1679.04,0.00030136,2]
[325298156,1714685452320,-528.55,0.00030136,2]
[325298157,1714685452330,-500.0,0.00030136,2]
[325298158,1714685452340,-2970.04,0.00030136,2]
[325298159,1714685452349,-6087.74,0.00030136,2]
[325298160,1714685452359,-3910.94,0.00030136,2]
[325298161,1714685452369,-500.0,0.00030136,2]
[325298162,1714685452378,-500.0,0.00030136,2]
[325298163,1714685452388,-1175.0,0.00030136,2]
[325298164,1714685452398,-2070.79,0.00030136,2]
[325298165,1714685452407,-500.0,0.00030136,2]
[325298166,1714685452416,-500.0,0.00030136,2]
[325298167,1714685452426,-14670.51,0.00030136,2]
[325298168,1714685452435,-500.72005854,0.00030136,2]
[325298169,1714685452445,-500.0,0.00030136,2]
[325298170,1714685452458,-500.0,0.00030136,2]
[325298171,1714685452467,-998.32,0.00030136,2]
[325298172,1714685452478,-500.0,0.00030136,2]
[325298173,1714685452487,-7232.65,0.00030136,2]
[325298174,1714685452498,-1268.67,0.00030136,2]
[325298175,1714685452508,-895.77,0.00030136,2]
[325298176,1714685452518,-369.71737103,0.00030136,2]
[325298177,1714685452527,-3777.5,0.00030136,2]
[325298178,1714685452537,-500.0,0.00030136,2]
[325298179,1714685452547,-500.0,0.00030136,2]
[325298180,1714685452557,-5094.08,0.00030136,2]
[325298181,1714685452567,-500.0,0.00030136,4]
[325298182,1714685452576,-500.0,0.00030136,2]
[325298183,1714685452586,-500.0,0.00030136,4]
[325298184,1714685452595,-500.0,0.00030136,4]
[325298185,1714685452604,-500.0,0.00030136,4]
[325298186,1714685452614,-365.90981871,0.00030136,2]
[325298187,1714685452624,-500.0,0.00030136,4]
[325298188,1714685452635,-500.0,0.00030136,2]
[325298189,1714685452645,-500.0,0.00030136,4]
[325298190,1714685452654,-500.0,0.00030136,4]
[325298191,1714685452664,-2672.24,0.00030136,2]
[325298192,1714685452674,-4992.6,0.00030136,2]
[325298193,1714685452684,-500.0,0.00030136,4]
[325298194,1714685452694,-500.0,0.00030136,4]
[325298195,1714685452703,-500.0,0.00030136,2]
[325298196,1714685452712,-500.0,0.00030136,4]
[325298197,1714685452722,-500.0,0.00030136,2]
[325298198,1714685452733,-500.0,0.00030136,4]
[325298199,1714685452742,-500.0,0.00030136,4]
[325298200,1714685452752,-500.0,0.00030136,4]
[325298201,1714685452762,-500.0,0.00030136,2]
[325298202,1714685452771,-500.0,0.00030136,4]
[325298203,1714685452780,-500.0,0.00030136,4]
[325298204,1714685452789,-500.0,0.00030136,4]
[325298205,1714685452799,-627.14,0.00030136,2]
[325298206,1714685452808,-500.0,0.00030136,4]
[325298207,1714685452818,-500.0,0.00030136,4]
[325298208,1714685452827,-500.0,0.00030136,2]
[325298209,1714685452837,-500.0,0.00030136,4]
[325298210,1714685452846,-500.0,0.00030136,4]
[325298211,1714685452856,-1749.97,0.00030136,2]
[325298212,1714685452865,-500.0,0.00030136,4]
[325298213,1714685452875,-500.0,0.00030136,4]
[325298214,1714685452885,-500.0,0.00030136,2]
[325298215,1714685452894,-500.0,0.00030136,4]
[325298216,1714685452904,-282.41,0.00030136,4]
[325298217,1714685452913,-1529.25,0.00030136,2]
[325298218,1714685452923,-500.0,0.00030136,2]
[325298219,1714685452933,-500.94801303,0.00030136,2]
[325298220,1714685452942,-2922.55,0.00030136,2]
[325298221,1714685452951,-566.12,0.00030136,2]
[325298222,1714685452961,-500.0,0.00030136,2]
[325298223,1714685452970,-10885.83,0.00030136,2]
[325298224,1714685452980,-500.0,0.00030136,2]
[325298225,1714685452990,-11409.05,0.00030136,2]
[325298226,1714685453000,-500.0,0.00030136,2]
[325298227,1714685453010,-500.0,0.00030136,2]
[325298228,1714685453019,-5162.49,0.00030136,2]
[325298229,1714685453029,-496.81210506,0.00030136,2]
[325298230,1714685453039,-1004.34,0.00030136,2]
[325298231,1714685453048,-512.16367276,0.00030136,2]
[325298232,1714685453057,-2492.19,0.00030136,2]
[325298233,1714685453067,-1659.44,0.00030136,2]
[325298234,1714685453075,-1411.6,0.00030136,2]
[325298235,1714685453085,-4724.67,0.00030136,2]
[325298236,1714685453095,-6576.69,0.00030136,2]
[325298237,1714685453104,-500.0,0.00030136,2]
[325298238,1714685453114,-2282.3,0.00030136,2]
[325298239,1714685453124,-500.0,0.00030136,2]
[325298240,1714685453134,-500.0,0.00030136,2]
[325298241,1714685453144,-500.0,0.00030136,2]
[325298242,1714685453153,-500.0,0.00030136,2]
[325298243,1714685453162,-500.0,0.00030136,2]
[325298244,1714685453171,-500.61515683,0.00030136,2]
[325298245,1714685453181,-500.0,0.00030136,2]
[325298246,1714685453190,-500.0,0.00030136,2]
[325298247,1714685453199,-500.0,0.00030136,2]
[325298248,1714685453208,-500.0,0.00030136,2]
[325298249,1714685453218,-500.0,0.00030136,2]
[325298250,1714685453228,-642.96,0.00030136,2]
[325298251,1714685453238,-500.0,0.00030136,2]
[325298252,1714685453248,-20525.17,0.00030136,2]
[325298253,1714685453258,-500.0,0.00030136,2]
[325298254,1714685453268,-500.0,0.00030136,2]
[325298255,1714685453278,-500.0,0.00030136,2]
[325298256,1714685453287,-2417.71,0.00030136,2]
[325298257,1714685453296,-1645.32,0.00030136,2]
[325298258,1714685453306,-1468.37,0.00030136,2]
[325298259,1714685453316,-768.09,0.00030136,2]
[325298260,1714685453325,-1092.85,0.00030136,2]
[325298261,1714685453334,-1930.84,0.00030136,2]
[325298262,1714685453344,-3517.95,0.00030136,2]
[325298263,1714685453353,-500.0,0.00030136,2]
[325298264,1714685453363,-500.0,0.00030136,2]
[325298265,1714685453372,-747.2,0.00030136,2]
[325298266,1714685453382,-500.0,0.00030136,2]
[325298267,1714685453391,-3677.32,0.00030136,2]
[325298268,1714685453401,-4034.86,0.00030136,2]
[325298269,1714685453410,-500.0,0.00030136,2]
[325298270,1714685453421,-500.0,0.00030136,2]
[325298271,1714685453431,-2105.07,0.00030136,2]
[325298272,1714685453440,-939.56,0.00030136,2]
[325298273,1714685453450,-500.0,0.00030136,2]
[325298274,1714685453459,-500.0,0.00030136,2]
[325298275,1714685453473,-1933.71,0.00030136,2]
[325298276,1714685453484,-605.38,0.00030136,2]
[325298277,1714685453494,-2829.77,0.00030136,2]
[325298278,1714685453506,-696.53,0.00030136,2]
[325298279,1714685453516,-500.0,0.00030136,2]
[325298280,1714685453525,-536.22,0.00030136,2]
[325298281,1714685453536,-500.0,0.00030136,2]
[325298282,1714685453546,-4544.03,0.00030136,2]
[325298283,1714685453556,-683.22,0.00030136,2]
[325298284,1714685453565,-2005.19,0.00030136,2]
[325298285,1714685453575,-2815.16,0.00030136,2]
[325298286,1714685453584,-500.0,0.00030136,2]
[325298287,1714685453594,-673.76,0.00030136,2]
[325298288,1714685453604,-500.0,0.00030136,2]
[325298289,1714685453615,-500.0,0.00030136,2]
[325298290,1714685453625,-500.0,0.00030136,2]
[325298291,1714685453635,-610.1,0.00030136,2]
[325298292,1714685453644,-500.0,0.00030136,2]
[325298293,1714685453654,-500.0,0.00030136,2]
[325298294,1714685453664,-500.0,0.00030136,2]
[325298295,1714685453674,-1141.0,0.00030136,2]
[325298296,1714685453683,-500.0,0.00030136,2]
[325298297,1714685453692,-2413.52,0.00030136,2]
[325298298,1714685453702,-1447.73,0.00030136,2]
[325298299,1714685453711,-1835.74,0.00030136,2]
[325298300,1714685453721,-500.0,0.00030136,2]
[325298301,1714685453731,-1657.75,0.00030136,2]
[325298302,1714685453740,-667.21,0.00030136,2]
[325298303,1714685453749,-501.17248141,0.00030136,2]
[325298304,1714685453759,-966.45,0.00030136,2]
[325298305,1714685453768,-2653.94,0.00030136,2]
[325298306,1714685453777,-500.0,0.00030136,2]
[325298307,1714685453787,-545.83,0.00030136,2]
[325298308,1714685453796,-7078.15,0.00030136,2]
[325298309,1714685453806,-500.0,0.00030136,2]
[325298310,1714685453815,-1179.79,0.00030136,2]
[325298311,1714685453824,-660.91,0.00030136,2]
[325298312,1714685453834,-500.0,0.00030136,2]
[325298313,1714685453843,-502.14,0.00030136,2]
[325298314,1714685453853,-3800.4,0.00030136,2]
[325298315,1714685453862,-500.0,0.00030136,2]
[325298316,1714685453872,-509.1237414,0.00030136,2]
[325298317,1714685453882,-492.66259205,0.00030136,2]
[325298318,1714685453891,-1778.16,0.00030136,2]
[325298319,1714685453901,-500.0,0.00030136,2]
[325298320,1714685453911,-1290.39,0.00030136,2]
[325298321,1714685453920,-1024.48,0.00030136,2]
[325298322,1714685453930,-4241.49,0.00030136,4]
[325298323,1714685453940,-4241.49,0.00030136,4]
[325298324,1714685453949,-4889.17,0.00030136,2]
[325298325,1714685453959,-4241.49,0.00030136,4]
[325298326,1714685453968,-4241.49,0.00030136,4]
[325298327,1714685453978,-4241.49,0.00030136,4]
[325298328,1714685453988,-4241.49,0.00030136,4]
[325298329,1714685453997,-4241.49,0.00030136,4]
[325298330,1714685454007,-2579.09,0.00030136,2]
[325298331,1714685454016,-4241.49,0.00030136,4]
[325298332,1714685454026,-4241.49,0.00030136,4]
[325298333,1714685454035,-500.0,0.00030136,2]
[325298334,1714685454046,-4241.49,0.00030136,4]
[325298335,1714685454055,-4241.49,0.00030136,4]
[325298336,1714685454064,-500.0,0.00030136,2]
[325298337,1714685454073,-500.0,0.00030136,2]
[325298338,1714685454082,-500.0,0.00030136,2]
[325298339,1714685454092,-500.0,0.00030136,2]
[325298340,1714685454101,-2455.06,0.00030136,2]
[325298341,1714685454110,-1287.45,0.00030136,2]
[325298342,1714685454119,-500.0,0.00030136,2]
[325298343,1714685454128,-12404.8,0.00030136,2]
[325298344,1714685454137,-1150.72,0.00030136,2]
[325298345,1714685454146,-2284.13,0.00030136,2]
[325298346,1714685454156,-500.0,0.00030136,2]
[325298347,1714685454165,-500.0,0.00030136,2]
[325298348,1714685454174,-500.0,0.00030136,2]
[325298349,1714685454183,-322.11,0.00030137,2]
[325298350,1714685454192,-153.09613825,0.00030225,7]
[325298351,1714685454201,-180.0,0.00030258,2]
[325298352,1714685454211,-191.33372472,0.0003031,2]
[325298353,1714685454220,-7393.1635,0.0003031,2]
[325298354,1714685454230,-1482.6251,0.0003031,2]
[325298355,1714685454239,-500.0,0.0003031,2]
[325298356,1714685454248,-150.0,0.000304,6]
[325298357,1714685454258,-4241.49,0.00030409,4]
[325298358,1714685454267,-2239.32101986,0.00030409,4]
[325298359,1714685454285,-712.87,0.00030409,4]
[325298360,1714685454307,-1149.42897912,0.00030409,4]
[325298361,1714685454318,-139.87000102,0.00030409,4]
[325298362,1714685454327,-164.07329882,0.00030409,4]
[325298363,1714685454339,-1147.94373023,0.00030409,4]
[325298364,1714685454351,-896.82497611,0.00030409,4]
[325298365,1714685454362,-281.70783134,0.00030409,4]
[325298366,1714685454376,-264.4956,0.00030409,4]
[325298367,1714685454395,-1486.4445635,0.00030409,4]
[325298368,1714685454408,-249.4754365,0.00030409,4]
[325298369,1714685454422,-492.31580113,0.00030409,4]
[325298370,1714685454439,-489.59093316,0.00030409,4]
[325298371,1714685454456,-583.612171,0.00030409,4]
[325298372,1714685454475,-524.85,0.00030409,4]
[325298373,1714685454493,-460.63094984,0.00030409,4]
[325298374,1714685454509,-1046.7296758,0.00030409,4]
[325298375,1714685454523,-394.28503257,0.00030409,4]
[325298376,1714685454534,-575.63911605,0.00030409,4]
[325298377,1714685454553,-3665.85088395,0.00030409,4]
[325298378,1714685454568,-500.0,0.0003041,2]
[325298379,1714685454580,-500.0,0.0003041,2]
[325298380,1714685454594,-500.0,0.0003041,2]
[325298381,1714685454608,-500.0,0.0003041,2]
[325298383,1714685454622,-500.0,0.0003041,2]
[325298384,1714685454634,-500.0,0.0003041,2]
[325298385,1714685454650,-765.7,0.0003041,2]
[325298386,1714685454664,-500.0,0.0003041,2]
[325298387,1714685454676,-500.0,0.0003041,2]
[325298388,1714685454690,-500.0,0.0003041,2]
[325298389,1714685454702,-78.3209951,0.0003041,2]
[325298390,1714685454768,-444.5590049,0.0003041,2]
[325298391,1714685454780,-500.0,0.0003041,2]
[325298392,1714685454794,-19.17277834,0.0003041,2]
[325298393,1714685454811,-480.82722166,0.0003041,2]
[325298394,1714685454822,-107.73604334,0.0003041,2]
[325298395,1714685454835,-578.86395666,0.0003041,2]
[325298396,1714685454846,-500.0,0.0003041,2]
[325298397,1714685454861,-713.47,0.0003041,2]
[325298398,1714685454872,-500.0,0.0003041,2]
[325298399,1714685454883,-899.0,0.0003041,2]
[325298400,1714685454894,-12.70933342,0.0003041,2]
[325298401,1714685454913,-487.29066658,0.0003041,2]
[325298402,1714685454924,-500.0,0.0003041,2]
[325298403,1714685454935,-500.0,0.0003041,2]
[325298404,1714685454946,-500.0,0.0003041,2]
[325298405,1714685454958,-500.0,0.0003041,2]
[325298406,1714685454969,-500.0,0.0003041,2]
[325298407,1714685454981,-676.78,0.0003041,2]
[325298408,1714685454992,-922.41,0.0003041,2]
[325298409,1714685455004,-500.0,0.0003041,2]
[325298410,1714685455015,-123.40659923,0.0003041,2]
[325298411,1714685455079,-376.59340077,0.0003041,2]
[325298412,1714685455091,-803.16,0.0003041,2]
[325298413,1714685455103,-500.0,0.0003041,2]
[325298414,1714685455114,-817.92,0.0003041,2]
[325298415,1714685455125,-500.0,0.0003041,2]
[325298416,1714685455136,-943.24,0.0003041,2]
[325298417,1714685455147,-674.51,0.0003041,2]
[325298418,1714685455159,-500.0,0.0003041,2]
[325298419,1714685455170,-500.0,0.0003041,2]
[325298420,1714685455182,-925.27,0.0003041,2]
[325298421,1714685455193,-550.59,0.0003041,2]
[325298422,1714685455205,-500.0,0.0003041,2]
[325298423,1714685455216,-500.0,0.0003041,2]
[325298424,1714685455227,-500.0,0.0003041,2]
[325298425,1714685455239,-697.13,0.0003041,2]
[325298426,1714685455251,-500.0,0.0003041,2]
[325298427,1714685455262,-796.79,0.0003041,2]
[325298428,1714685455273,-640.99,0.0003041,2]
[325298429,1714685455284,-500.0,0.0003041,2]
[325298430,1714685455295,-1182.99,0.0003041,2]
[325298431,1714685455306,-500.0,0.0003041,2]
[325298432,1714685455317,-500.0,0.0003041,2]
[325298433,1714685455328,-500.0,0.0003041,2]
[325298434,1714685455340,-598.08,0.0003041,2]
[325298435,1714685455351,-500.0,0.0003041,2]
[325298436,1714685455362,-500.0,0.0003041,2]
[325298437,1714685455374,-500.0,0.0003041,2]
[325298438,1714685455385,-807.29,0.0003041,2]
[325298439,1714685455397,-500.0,0.0003041,2]
[325298440,1714685455408,-500.0,0.0003041,2]
[325298441,1714685455419,-500.0,0.0003041,2]
[325298442,1714685455430,-500.0,0.0003041,2]
[325298443,1714685455442,-500.0,0.0003041,2]
[325298444,1714685455453,-526.16,0.0003041,2]
[325298445,1714685455469,-1035.64,0.0003041,2]
[325298446,1714685455481,-835.5,0.0003041,2]
[325298447,1714685455492,-299.88518552,0.0003041,2]
[325298448,1714685455503,-500.0,0.0003041,2]
[325298449,1714685455515,-500.0,0.0003041,2]
[325298450,1714685455527,-768.74,0.0003041,2]
[325298451,1714685455539,-500.0,0.0003041,2]
[325298452,1714685455551,-500.0,0.0003041,2]
[325298453,1714685455563,-500.0,0.0003041,2]
[325298454,1714685455574,-500.0,0.0003041,2]
[325298455,1714685455585,-637.99244232,0.0003041,2]
[325298456,1714685455596,-500.0,0.0003041,2]
[325298457,1714685455608,-500.0,0.0003041,2]
[325298458,1714685455620,-1103.01,0.0003041,2]
[325298459,1714685455632,-819.12,0.0003041,2]
[325298460,1714685455643,-738.18,0.0003041,2]
[325298461,1714685455654,-803.32,0.0003041,2]
[325298462,1714685455665,-616.49,0.0003041,2]
[325298463,1714685455677,-500.0,0.0003041,2]
[325298464,1714685455688,-915.25,0.0003041,2]
[325298465,1714685455699,-500.0,0.0003041,2]
[325298466,1714685455710,-500.0,0.0003041,2]
[325298467,1714685455721,-500.0,0.0003041,2]
[325298468,1714685455733,-500.0,0.0003041,2]
[325298469,1714685455744,-592.84,0.0003041,2]
[325298470,1714685455755,-500.0,0.0003041,2]
[325298471,1714685455767,-1154.13,0.0003041,2]
[325298472,1714685455778,-500.0,0.0003041,2]
[325298473,1714685455789,-892.32,0.0003041,2]
[325298474,1714685455800,-778.37,0.0003041,2]
[325298475,1714685455812,-500.0,0.0003041,2]
[325298476,1714685455824,-500.0,0.0003041,2]
[325298477,1714685455835,-781.2,0.0003041,2]
[325298478,1714685455847,-500.0,0.0003041,2]
[325298479,1714685455858,-237.89829196,0.0003041,2]
[325298480,1714685455869,-500.0,0.0003041,2]
[325298481,1714685455880,-1074.57,0.0003041,2]
[325298482,1714685455891,-500.0,0.0003041,2]
[325298483,1714685455903,-500.0,0.0003041,2]
[325298484,1714685455914,-729.62,0.0003041,2]
[325298485,1714685455925,-500.0,0.0003041,2]
[325298486,1714685455935,-199.55744619,0.0003041,2]
[325298487,1714685455947,-500.0,0.0003041,2]
[325298488,1714685455958,-500.0,0.0003041,2]
[325298489,1714685455969,-1005.04,0.0003041,2]
[325298490,1714685455980,-1063.59,0.0003041,2]
[325298491,1714685455991,-500.0,0.0003041,2]
[325298492,1714685456002,-500.0,0.0003041,2]
[325298493,1714685456013,-500.0,0.0003041,2]
[325298494,1714685456024,-150.0,0.0003041,2]
[325298495,1714685456034,-1227.29,0.0003041,2]
[325298496,1714685456045,-986.58,0.0003041,2]
[325298497,1714685456056,-500.0,0.0003041,2]
[325298498,1714685456067,-500.0,0.0003041,2]
[325298499,1714685456078,-500.0,0.0003041,2]
[325298500,1714685456089,-500.0,0.0003041,2]
[325298501,1714685456100,-500.0,0.0003041,2]
[325298502,1714685456111,-500.0,0.0003041,2]
[325298503,1714685456122,-500.0,0.0003041,2]
[325298504,1714685456134,-500.0,0.0003041,2]
[325298505,1714685456145,-825.31,0.0003041,2]
[325298506,1714685456156,-553.07,0.0003041,2]
[325298507,1714685456167,-1098.45,0.0003041,2]
[325298508,1714685456178,-805.33,0.0003041,2]
[325298509,1714685456189,-500.0,0.0003041,2]
[325298510,1714685456201,-500.0,0.0003041,2]
[325298511,1714685456212,-500.0,0.0003041,2]
[325298512,1714685456223,-500.0,0.0003041,2]
[325298513,1714685456236,-500.0,0.0003041,2]
[325298514,1714685456247,-500.0,0.0003041,2]
[325298515,1714685456258,-808.19,0.0003041,2]
[325298516,1714685456269,-760.73,0.0003041,2]
[325298517,1714685456281,-1138.67,0.0003041,2]
[325298518,1714685456292,-500.0,0.0003041,2]
[325298519,1714685456303,-641.46,0.0003041,2]
[325298520,1714685456314,-644.51,0.0003041,2]
[325298521,1714685456326,-500.0,0.0003041,2]
[325298522,1714685456337,-657.28,0.0003041,2]
[325298523,1714685456348,-500.0,0.0003041,2]
[325298524,1714685456359,-741.22,0.0003041,2]
[325298525,1714685456370,-1578.32,0.0003041,2]
[325298526,1714685456381,-500.0,0.0003041,2]
[325298527,1714685456392,-708.65,0.0003041,2]
[325298528,1714685456403,-500.0,0.0003041,2]
[325298529,1714685456415,-500.0,0.0003041,2]
[325298530,1714685456426,-500.0,0.0003041,2]
[325298531,1714685456437,-665.28,0.0003041,2]
[325298532,1714685456449,-500.0,0.0003041,2]
[325298533,1714685456461,-1051.71,0.0003041,2]
[325298534,1714685456475,-629.07174558,0.0003041,2]
[325298535,1714685456487,-500.0,0.0003041,2]
[325298536,1714685456498,-658.5,0.0003041,2]
[325298537,1714685456511,-500.0,0.0003041,2]
[325298538,1714685456523,-820.63,0.0003041,2]
[325298539,1714685456533,-500.0,0.0003041,2]
[325298540,1714685456545,-535.70334789,0.0003041,2]
[325298541,1714685456556,-828.09,0.0003041,2]
[325298542,1714685456568,-500.0,0.0003041,2]
[325298543,1714685456578,-1324.85,0.0003041,2]
[325298544,1714685456589,-500.0,0.0003041,2]
[325298545,1714685456601,-500.0,0.0003041,2]
[325298546,1714685456613,-500.0,0.0003041,2]
[325298547,1714685456624,-548.21,0.0003041,2]
[325298548,1714685456636,-1278.73,0.0003041,2]
[325298549,1714685456647,-626.61,0.0003041,2]
[325298550,1714685456658,-640.19,0.0003041,2]
[325298551,1714685456669,-500.0,0.0003041,2]
[325298552,1714685456681,-864.65,0.0003041,2]
[325298553,1714685456692,-500.0,0.0003041,2]
[325298554,1714685456707,-828.63,0.0003041,2]
[325298555,1714685456731,-1853.35,0.0003041,2]
[325298556,1714685456762,-500.0,0.0003041,2]
[325298557,1714685456790,-500.0,0.0003041,2]
[325298558,1714685456816,-500.0,0.0003041,2]
[325298559,1714685456843,-500.0,0.0003041,2]
[325298561,1714685456869,-500.0,0.0003041,2]
[325298562,1714685456882,-500.0,0.0003041,2]
[325298563,1714685456894,-500.0,0.0003041,2]
[325298564,1714685456906,-500.0,0.0003041,2]
[325298565,1714685456917,-600.85,0.0003041,2]
[325298566,1714685456928,-500.0,0.0003041,2]
[325298567,1714685456940,-596.1,0.0003041,2]
[325298568,1714685456951,-1386.73,0.0003041,2]
[325298569,1714685456963,-500.0,0.0003041,2]
[325298570,1714685456974,-500.0,0.0003041,2]
[325298571,1714685456986,-500.0,0.0003041,2]
[325298572,1714685456996,-500.0,0.0003041,2]
[325298573,1714685457008,-507.88645719,0.0003041,2]
[325298574,1714685457018,-1236.26,0.0003041,2]
[325298575,1714685457029,-500.0,0.0003041,2]
[325298576,1714685457040,-500.0,0.0003041,2]